Cogmind - Beta 14 @@@ ROGUE MODE // 2025.01.19 @ 19:42:10 Player: Mathewnd Result: Destroyed by D-53 Grenadier with Mini Grenade Launcher Performance ------------- Evolutions (1) 500 Regions Visited (4) 800 Robots Destroyed (45) 225 Value Destroyed (1180) 1180 Prototype IDs (2) 40 Alien Tech Used (0) 0 Bonus (27) 27 TOTAL SCORE: 2772 Bonus ------- High Alert Combat Kills 27 Cogmind --------- Core Integrity 0/400 Matter 193/300 Energy 52/100 System Corruption 0% Temperature Cool (0) Movement Treading (480) Ox4 Location -9/Mines Parts ------- > --- POWER (1) -------- (None) > --- PROPULSION (3) --- Light Treads Light Treads Compact Wheel > --- UTILITY (2) ------ Improved Heat Sink Huge Storage Unit > --- WEAPON (3) ------- Light Assault Rifle Autogun Mini Grenade Launcher > --- INVENTORY (25) --- Light Ion Engine Improved Ion Engine Improved Ion Engine Light Treads Light Treads Light Treads Light Treads Light Treads High-capacity Storage Unit Large Matter Pod (150) Compact Matter Pod (150) Sensor Array Salvage Targeting Computer Improved Targeting Computer Light Assault Rifle Light Assault Rifle Light Assault Rifle Light Assault Rifle Grenade Launcher Grenade Launcher Mini Grenade Launcher Peak State ------------ > --- POWER ------------ Reinforced Ion Engine > --- PROPULSION ------- Light Treads Light Treads Compact Wheel > --- UTILITY ---------- Improved Heat Sink Huge Storage Unit > --- WEAPON ----------- Light Assault Rifle Heavy Assault Rifle Autogun > --- INVENTORY -------- Light Ion Engine Improved Ion Engine Improved Ion Engine Light Treads Light Treads Light Treads Light Treads Light Treads Light Treads Light Treads Light Treads Compact Wheel High-capacity Storage Unit Large Matter Pod Compact Matter Pod Sensor Array Light Assault Rifle Light Assault Rifle Light Assault Rifle Light Assault Rifle Light Assault Rifle Grenade Launcher Grenade Launcher Mini Grenade Launcher Mini Grenade Launcher [Rating: 17] Favorites ----------- Power Reinforced Ion Engine Engine Reinforced Ion Engine Propulsion Light Treads Treads Light Treads Wheel Compact Wheel Utility High-capacity Storage Unit Device Improved Heat Sink Storage High-capacity Storage Unit Protection Reflective Plating Weapon Light Assault Rifle Ballistic Gun Light Assault Rifle Launcher Mini Grenade Launcher Build | -11 -10 -10 -9 -9 ------- Run | Yrd Mat Min Mat Min Slots Evolved 2 | . . . 2 . Power . | . . . . . Propulsion 1 | . . . 1 . Utility . | . . . . . Weapon 1 | . . . 1 . Parts Attached 38 | 6 4 2 14 12 Power 4 | 1 . 1 2 . Engine 4 | 1 . 1 2 . Core . | . . . . . Reactor . | . . . . . Propulsion 16 | 2 3 . 6 5 Treads 12 | 2 1 . 6 3 Leg . | . . . . . Wheel 4 | . 2 . . 2 Hover . | . . . . . Flight . | . . . . . Utility 5 | 1 1 . 3 . Device 1 | . . . 1 . Storage 3 | 1 1 . 1 . Processor . | . . . . . Hackware . | . . . . . Protection 1 | . . . 1 . Artifact . | . . . . . Weapon 13 | 2 . 1 3 7 Energy Gun . | . . . . . Energy Cannon . | . . . . . Ballistic Gun 12 | 2 . 1 3 6 Ballistic Cannon . | . . . . . Launcher 1 | . . . . 1 Special Weapon . | . . . . . Impact Weapon . | . . . . . Slashing Weapon . | . . . . . Piercing Weapon . | . . . . . Special Melee Weapon . | . . . . . Unidentified Prototypes . | . . . . . Parts Lost 14 | . . 2 4 8 Power 3 | . . 1 1 1 Propulsion 4 | . . . 1 3 Utility 1 | . . . 1 . Weapon 6 | . . 1 1 4 Highest Loss Streak 5 | . . 1 2 5 To Critical Strikes . | . . . . . Average Slot Usage (%) 94 | . 85 85 97 98 Engine 11 | . 14 14 9 10 Treads 25 | . 15 14 33 22 Wheel 6 | . 12 14 . 9 Device 4 | . . . 4 11 Storage 11 | . 14 14 11 11 Protection 2 | . . . 5 . Ballistic Gun 31 | . 28 28 33 32 Peak Build Rating 17 | 6 8 8 14 17 Average Rating 11 | 4 6 7 13 15 On Entrance 7 | . 6 8 8 14 Naked Turns . | . . . . . Heaviest Build 98 | 10 45 47 95 98 Greatest Support 60 | 40 40 16 60 60 Greatest Overweight (x) 6 | 1 2 2 1 6 Average Overweight (x) 1 | . 1 2 . 5 Largest Inventory Capacity 25 | 8 20 20 25 25 Average Capacity 21 | 6 18 20 20 25 Most Carried 25 | 6 20 20 22 25 Average Carried 18 | 3 11 19 18 23 Final Capacity 25 | 8 20 20 25 25 Final Carried 22 | 6 20 19 22 21 Class Distribution -------------------- 34% | Scavenger-Gunner 30% | Mutant 21% | Tank 13% | Gunner Dominant Class ---------------- Mutant | -10/Materials Mutant | -10/Mines Tank | -9/Materials Scavenger-Gunner | -9/Mines Resources | -11 -10 -10 -9 -9 ----------- Run | Yrd Mat Min Mat Min Matter Collected 1381 | 180 160 559 288 194 Remotely . | . . . . . Salvage Created 1625 | . 214 178 913 320 Parts 106 | . 20 18 45 23 Haulers Intercepted 2 | . 1 . 1 . Recyclers Shooed 2 | . 1 1 . . Parts Field Recycled . | . . . . . Retrieved Matter . | . . . . . Parts Self-Destructed . | . . . . . Prevented . | . . . . . Kills | -11 -10 -10 -9 -9 ------- Run | Yrd Mat Min Mat Min Combat Hostiles Destroyed 48 | . 6 8 16 18 Guns 40 | . 6 8 16 10 AOE 8 | . . . . 8 Classes Destroyed 10 | . 4 . 5 1 Builder 1 | . 1 . . . Hauler 2 | . 1 . 1 . Recycler 1 | . . . 1 . Watcher 3 | . . . 3 . Swarmer 12 | . 3 6 . 3 Grunt 18 | . 3 2 11 2 Brawler 2 | . . . 2 . Duelist 2 | . . . 1 1 Sentry 4 | . . . 2 2 Assembled 10 | . . . . 10 Best Kill Streak 10 | . 3 3 4 10 Combat Bots Only 10 | . 3 3 4 10 Max Kills in Single Turn 4 | . 1 1 1 4 Gunslinging . | . . . . . Exploded 4 | . . . . 4 Melee . | . . . . . Uniques/NPCs Destroyed . | . . . . . Combat | -11 -10 -10 -9 -9 -------- Run | Yrd Mat Min Mat Min Hostile Shots Fired 273 | . 26 56 84 107 Missed 66 | . 6 15 17 28 Damage Taken 2797 | . 212 405 883 1297 Core 563 | . 29 114 120 300 Absorbed by Shields . | . . . . . Ignored by Resistances 42 | . . . 42 . Core Remaining (%) 71 | 100 . 42 . . Volleys Fired 153 | . 26 22 63 42 Largest 3 | . 2 2 3 3 Hottest 60 | . 40 40 60 60 Shots Fired 388 | . 51 44 188 105 Gun 383 | . 51 44 188 100 Cannon . | . . . . . Launcher 5 | . . . . 5 Special . | . . . . . Kinetic 383 | . 51 44 188 100 Thermal . | . . . . . Explosive 5 | . . . . 5 Electromagnetic . | . . . . . Robot Hit Streak 11 | . 11 6 10 10 Robot Miss Streak 10 | . 5 10 4 5 Penetration Max . | . . . . . Secondary Targets 10 | . . 2 4 4 Max Gunslinging Chain 1 | . . 1 1 1 Shots Hit Robots 232 | . 30 20 122 60 Core Hits 122 | . 17 14 52 39 Critical Kills . | . . . . . Critical Parts Destroyed 1 | . . . 1 . Critical Strikes 1 | . . . 1 . Destroy 1 | . . . 1 . Melee Attacks . | . . . . . Impact . | . . . . . Slashing . | . . . . . Piercing . | . . . . . Sneak Attacks . | . . . . . Combat Hostiles . | . . . . . Follow-up Attacks . | . . . . . Damage Inflicted 2571 | . 279 168 1032 1092 Guns 2025 | . 252 164 1032 577 Cannons . | . . . . . Explosions 506 | . . . . 506 Melee . | . . . . . Ramming 40 | . 27 4 . 9 Kinetic 2025 | . 252 164 1032 577 Thermal . | . . . . . Explosive 506 | . . . . 506 Electromagnetic . | . . . . . Impact . | . . . . . Slashing . | . . . . . Piercing . | . . . . . Highest Corruption . | . . . . . Average Corruption . | . . . . . Corruption Purged . | . . . . . Corruption Blocked . | . . . . . Overload Shots . | . . . . . Overflow Damage . | . . . . . Projectiles . | . . . . . Explosions . | . . . . . Melee . | . . . . . Knockbacks . | . . . . . Impact . | . . . . . Kinetic . | . . . . . Secondary . | . . . . . Self-Inflicted Damage 68 | . 13 2 . 53 Shots 1 | . . . . 1 Rammed 4 | . 2 1 . 1 Targets Rammed 4 | . 2 1 . 1 Kicked . | . . . . . Crushed . | . . . . . Highest Temperature 223 | . 12 24 223 15 Average Temperature 62 | . 7 10 74 6 Received Heat Transfer 750 | . 72 84 420 174 Siege Activations . | . . . . . Robots Corrupted . | . . . . . Combat Hostiles . | . . . . . Parts Fried . | . . . . . Impact Corruptions . | . . . . . Robots Melted . | . . . . . Combat Hostiles . | . . . . . Parts Melted . | . . . . . Heat Transferred . | . . . . . Parts Sabotaged . | . . . . . Parts Stolen . | . . . . . Parts Stripped . | . . . . . Power Chain Reactions . | . . . . . Alert | -11 -10 -10 -9 -9 ------- Run | Yrd Mat Min Mat Min Peak Influence 462 | . 227 258 462 280 Initial 100 | . . 88 100 100 Average 210 | . 136 204 272 163 Maximum Alert Level 2 | . 1 1 2 1 Low Security (%) 38 | 100 83 42 7 63 Level 1 59 | . 16 57 87 36 Level 2 2 | . . . 4 . Level 3 . | . . . . . Level 4 . | . . . . . Level 5 . | . . . . . High Security . | . . . . . Max Security . | . . . . . Squads Dispatched 2 | . 2 . . . Investigation 1 | . 1 . . . Extermination . | . . . . . Reinforcement 1 | . 1 . . . Assault . | . . . . . Garrison . | . . . . . Intercept . | . . . . . Searches Triggered . | . . . . . Construction Impeded . | . . . . . Haulers Reinforced . | . . . . . Active Scanning Responses . | . . . . . Cargo Convoy Interrupts . | . . . . . Stealth | -11 -10 -10 -9 -9 --------- Run | Yrd Mat Min Mat Min Distress Signals 1 | . 1 . . . Communications Jammed . | . . . . . Distress Signals . | . . . . . Times Spotted 72 | . 12 8 23 29 Peak Tracking Total 8 | . 4 3 3 8 Tactical Retreats 2 | . 1 . 1 . Traps | -11 -10 -10 -9 -9 ------- Run | Yrd Mat Min Mat Min Traps Triggered 2 | . 1 . 1 . Indirectly . | . . . . . Trap Hack Attempts . | . . . . . Triggered . | . . . . . Disarmed . | . . . . . Reprogrammed . | . . . . . Reused . | . . . . . Traps Extracted . | . . . . . Installed . | . . . . . Triggered . | . . . . . Machines | -11 -10 -10 -9 -9 ---------- Run | Yrd Mat Min Mat Min Machines Disabled . | . . . . . Max in Single Turn . | . . . . . Machines Repaired . | . . . . . Machines Dismantled . | . . . . . Machines Sabotaged . | . . . . . Overloaded Fab Kills . | . . . . . Hacking | -11 -10 -10 -9 -9 --------- Run | Yrd Mat Min Mat Min Machines Accessed 5 | . 1 . 4 . Terminals 5 | . 1 . 4 . Fabricators . | . . . . . Repair Stations . | . . . . . Recycling Units . | . . . . . Scanalyzers . | . . . . . Garrison Access . | . . . . . Total Hacks 14 | . 2 . 12 . Successful 6 | . 1 . 5 . Failed 8 | . 1 . 7 . Catastrophic . | . . . . . Database Lockouts . | . . . . . Manual 9 | . 2 . 7 . Terminals 14 | . 2 . 12 . Fabricators . | . . . . . Repair Stations . | . . . . . Recycling Units . | . . . . . Scanalyzers . | . . . . . Garrison Access . | . . . . . Terminal Hacks 2 | . . . 2 . Prototype ID Bank 1 | . . . 1 . Branch Access Points 1 | . . . 1 . Fabricator Hacks . | . . . . . Repair Station Hacks . | . . . . . Recycling Unit Hacks . | . . . . . Scanalyzer . | . . . . . Garrison Access Hacks . | . . . . . Unauthorized Hacks 4 | . 1 . 3 . Terminals 4 | . 1 . 3 . Botnet 4 | . 1 . 3 . Fabricators . | . . . . . Repair Stations . | . . . . . Recycling Units . | . . . . . Scanalyzers . | . . . . . Garrison Access . | . . . . . Data Cores Recovered . | . . . . . Used . | . . . . . Hacking Detections 5 | . 1 . 4 . Full Trace Events . | . . . . . Feedback Events . | . . . . . Feedback Blocked . | . . . . . Robot Schematics Acquired . | . . . . . Robots Built . | . . . . . Authchips . | . . . . . Time . | . . . . . Total Robot Build Rating . | . . . . . Part Schematics Acquired . | . . . . . Parts Built . | . . . . . Authchips . | . . . . . Time . | . . . . . Total Part Build Rating . | . . . . . Parts Repaired . | . . . . . Time . | . . . . . Parts Recycled . | . . . . . Recycled Matter . | . . . . . Retrieved Matter . | . . . . . Retrieved Components . | . . . . . Parts Scanalyzed . | . . . . . Part Schematics Acquired . | . . . . . Parts Damaged . | . . . . . Bothacking | -11 -10 -10 -9 -9 ------------ Run | Yrd Mat Min Mat Min Used RIF Installer . | . . . . . Robots Hacked . | . . . . . Non-combat . | . . . . . Combat . | . . . . . Robot Hacks Applied . | . . . . . Relay Couplers Released . | . . . . . Fabnet Peak Effective % . | . . . . . Robots Rewired . | . . . . . Allies Hacked . | . . . . . Hacks Repelled . | . . . . . Allies | -11 -10 -10 -9 -9 -------- Run | Yrd Mat Min Mat Min Total Allies . | . . . . . Largest Group . | . . . . . Highest-Rated Group . | . . . . . Highest-Rated Ally . | . . . . . Total Orders . | . . . . . Ally Attacks . | . . . . . Total Damage . | . . . . . Kills . | . . . . . Allies Corrupted . | . . . . . Allies Melted . | . . . . . Intel | -11 -10 -10 -9 -9 ------- Run | Yrd Mat Min Mat Min Robot Analysis Total . | . . . . . Derelict Logs Recovered 2 | . . 1 . 1 Drone Launches . | . . . . . Drone Recoveries . | . . . . . Exploration | -11 -10 -10 -9 -9 ------------- Run | Yrd Mat Min Mat Min Turns Passed 2584 | 72 343 349 1181 639 Spaces Moved 1275 | 40 180 215 571 269 Core 8 | 8 . . . . Treads 636 | 32 20 . 571 13 Legs . | . . . . . Wheels 631 | . 160 215 . 256 Hover . | . . . . . Flight . | . . . . . Fastest Speed 50 | 50 130 130 160 175 Average Speed 160 | 139 134 130 171 184 Slowest Speed 240 | 160 240 130 240 240 Overloaded Moves . | . . . . . Propulsion Burnouts . | . . . . . Robots Hopped . | . . . . . Cave-ins Triggered . | . . . . . Exploration Rate (%) 38 | 4 36 56 45 51 Regions Visited 4 Branch Regions 2 Pre-discovered Areas 1 | . . . . 1 Known Exits Taken 1 | . . . 1 . Unknown Exits Taken 3 | 1 1 1 . . Scrap Searched 2 | . . 1 . 1 Spaces Dug . | . . . . . Terrain Destroyed 32 | . . . . 32 Melee . | . . . . . Projectile . | . . . . . AOE 32 | . . . . 32 Terrain Rammed . | . . . . . Walls Destroyed . | . . . . . Machines Disabled . | . . . . . Actions | -11 -10 -10 -9 -9 --------- Run | Yrd Mat Min Mat Min Total 1558 | 54 242 253 670 339 Wait 28 | 1 5 5 12 5 Move 1271 | 39 179 214 570 269 Hop . | . . . . . Pick Up 47 | 8 18 5 9 7 Fast Attach 7 | 4 1 . 2 . Attach 18 | 2 1 2 6 7 Detach 2 | . 2 . . . Swap 13 | . 2 . 6 5 Drop 15 | . 6 4 2 3 Fire 153 | . 26 22 63 42 Melee . | . . . . . Ram 4 | . 2 1 . 1 Kick . | . . . . . Crush . | . . . . . Escape Stasis . | . . . . . Rewire . | . . . . . Trap . | . . . . . Miscellaneous . | . . . . . Route ------- -11/Scrapyard -10/Materials -10/Mines -9/Materials (discovered 3 exits: [*Mat] / *Min x2) -9/Mines (discovered 2 exits: [*Mat x2]) History --------- Turn | Location | Event 2 | -11/Scrapyard | Met Revision 17 8 | -11/Scrapyard | Discovered new exit (range 16) 73 | -11/Scrapyard | Entered Materials 301 | -10/Materials | Build established: Mutant 369 | -10/Materials | Discovered new exit (range 16) 416 | -10/Materials | Entered Mines 646 | -10/Mines | Core integrity fell below 50% 686 | -10/Mines | Learned Materials terminal intel 735 | -10/Mines | Discovered new exit (range 10) 765 | -10/Mines | Entered Materials 765 | -9/Materials | Evolved 2 slots: Propulsion x1, Weapon x1 766 | -9/Materials | Loaded intel: 12 terminal locations 1259 | -9/Materials | Build established: Tank 1448 | -9/Materials | Discovered new exit (range 9) 1606 | -9/Materials | Identified exit to Mines 1812 | -9/Materials | Build established: Scavenger-Gunner 1946 | -9/Materials | Entered Mines 1951 | -9/Mines | Met a Derelict bent on vengeance 2193 | -9/Mines | Learned location of Recycling (-8) 2202 | -9/Mines | Discovered new exit (range 9) 2209 | -9/Mines | Discovered new exit (range 8) 2220 | -9/Mines | Core integrity fell below 50% 2516 | -9/Mines | Assembled infested the area 2548 | -9/Mines | Core integrity fell below 20% 2581 | -9/Mines | Destroyed 10 combat bots 2585 | -9/Mines | Destroyed by D-53 Grenadier with Mini Grenade Launcher Last Messages --------------- 02551_ The unstable cave ceiling collapses. 02551_ as-85324 destroyed. 02551_ as-16291 destroyed. 02553_ as-38064 destroyed. 02554_ as-89835 destroyed. 02554_ as-37299 destroyed. 02554_ Rnf. Ion Engine destroyed. 02557_ D-53 Grenadier destroyed. 02558_ as-26131 destroyed. 02558_ as-85934 destroyed. 02559_ The unstable cave ceiling collapses. 02560_ as-49100 destroyed. 02560_ Switching to secondary target: D-53 Grenadier. 02567_ The unstable cave ceiling collapses. 02580_ K-01 Serf collects debris. 02581_ Hvy. Assault Rifle destroyed. 02581_ Lgt. Assault Rifle destroyed. 02583_ K-01 Serf destroyed. 02583_ T-07 Excavator destroyed. Map ----- +----------------------------------------------------+ | # ##????? |%???????????????? | | # #######??????# ????????????????? | | ##= ##????????????# #????????????????? | | %*#??????######?# #????????????????? | | ## #?????## ##? ###??????????????? | | ?# #????## # ???????????????? | | ?# =#???## # ????????????????? | | ?# %#??## # ????????????????? | | ?# *#### #????????????????? | | ?#*= # ????????????????? | | ?#= #!%! #???????????????? | | ?### ###### ### ##?????????????? | | ???# #????######?# * ###???????????? | | ???# #????????????# = ##??????????? | | ???# #??????????????? ##?????????? | | #### #????????????????# #?????????? | | #????????????????# %% #?????????? | | ### ##????????????????# ##?????????? | | ??#!#???????# ????????# #??????????? | | ??# #??????? ??????## # ##??????????? | | ??#%#?????? ????##### ##???????????? | | ??#!#?????? #### ## #????????????? | | ??# #????? d ##???????????? | | ??# #????? !% #???????????? | | ??# #????? = ##??????????? | | ??# ????? @ #??????????? | | ??## ?????# ## #??????????? | | ???? ??????? ?????#### #??????????? | | ???? ????????????????# % #??????????? | | ???? ????????????????## # ##??????????? | | ???? ?????????????????### ###???????????? | | ???? ??????????????????? ##?????????????? | | ???? ??????????????????? #??????????????? | | ???? ??????????????????? #??????????????? | | ???????????????????????# #??????????????? | | ???????????????????????# #??????????????? | | ???????????????????????# ??????????????? | | ???????????????????????# ??????????????? | | ????????????????????????#k ??????????????? | | ????????????????????????? ??????????????? | | ????????????????????????? ??????????????? | | ??????????????????????????????????????????? | | ??????????????????????????????????????????? | | ??????????????????????????????????????????? | | ??????????????????????????????????????????? | | ??????????????????????????????????????????? | | ??????????????????????????????????????????? | | ??????????????????????????????????????????? | | ??????????????????????????????????????????? | | ??????????????????????????????????????????? | +----------------------------------------------------+ Best States ------------- Heat Dissipation 42 Energy Generation 12 Energy Capacity 265 Matter Stores 300 Matter Capacity 300 Sight Range 16 Terrain Scan Density 10 Armor Coverage 150 Resistance: TH 10 Evasion (%) 50 Recoil Reduction 3 Item Schematics ----------------- None Robot Schematics ------------------ None Fabricated ------------ Nothing Alien Tech Used ----------------- None Achievements -------------- None Challenges ------------ None Game ------ Seed SuperquantumXenonInitializer Manual? 0 Play Time 00:19:44 Cumulative 163.3 hours Start 2025.01.19 @ 17:34:17 End 2025.01.19 @ 19:42:10 Sessions 2 Manual Loads 0 Difficulty Rogue Special Mode None Game No. 133 Rogue 133 Adventurer 0 Explorer 0 Win Type - Total 3 Types 1/0/1/1/0/0/0/0/0 Lore% 69 Gallery% 61 Achievement% 59 Wizard Run 0 Options --------- Layout 1 ASCII 0 Keyboard 1 Movement Arrows Keybinds 0 Fullscreen 2 Font 24/Smallcaps Map View 50x35 Zoom Use 0% Tactical HUD 1 Map Filters NONE Filters NONE Steam 1 RUN: 0eb40235-913e-43d6-875b-e5963b74653b